lending/lending_fUSD_20241212
["ID","MTS","AMOUNT","RATE_DAILY","PERIOD"]
[345107620,1734021061173,-500.0,0.0002581,2]
[345107621,1734021061183,-900.0,0.0002581,2]
[345107622,1734021061192,-500.0,0.0002581,2]
[345107623,1734021061202,-500.0,0.0002581,2]
[345107624,1734021061212,-500.0,0.0002581,2]
[345107625,1734021061222,-500.0,0.0002581,2]
[345107626,1734021061231,-500.0,0.0002581,2]
[345107627,1734021061242,-500.0,0.0002581,2]
[345107628,1734021061251,-1000.0,0.00025823,30]
[345107629,1734021061261,-1554.368332,0.00025835,2]
[345107630,1734021061270,-997.12,0.00025835,2]
[345107631,1734021061280,-1603.8379432,0.00025864,2]
[345107632,1734021061289,-1000.0,0.00025867,30]
[345107633,1734021061299,-500.0,0.00025873,2]
[345107634,1734021061309,-500.0,0.00025873,2]
[345107635,1734021061318,-314.3367718,0.00025873,2]
[345107636,1734021061327,-500.0,0.00025873,2]
[345107637,1734021061337,-502.60585698,0.00025873,2]
[345107638,1734021061347,-500.0,0.00025873,2]
[345107639,1734021061359,-500.0,0.00025873,2]
[345107640,1734021061368,-784.0614126,0.00025882,2]
[345107641,1734021061377,-300.0,0.00025899,10]
[345107642,1734021061386,-300.0,0.00025899,10]
[345107643,1734021061397,-300.0,0.00025899,10]
[345107644,1734021061407,-300.0,0.00025899,10]
[345107645,1734021061416,-300.0,0.00025899,10]
[345107646,1734021061426,-300.0,0.00025899,10]
[345107647,1734021061435,-300.0,0.00025899,10]
[345107648,1734021061445,-300.0,0.00025899,10]
[345107649,1734021061454,-1021.05799796,0.00025899,10]
[345107650,1734021061464,-201.14215378,0.00025899,10]
[345107651,1734021061473,-1235.46513366,0.00025899,10]
[345107652,1734021061482,-14998.0228383,0.000259,7]
[345107653,1734021061491,-118404.14417038,0.000259,2]
[345107654,1734021061501,-534.0,0.00025907,2]
[345107655,1734021061511,-1000.0,0.00025911,30]
[345107656,1734021061520,-500.0,0.00025943,2]
[345107657,1734021061530,-500.0,0.00025943,2]
[345107658,1734021061540,-500.0,0.00025943,2]
[345107659,1734021061549,-464.97392897,0.00025943,2]
[345107660,1734021061559,-500.0,0.00025943,2]
[345107661,1734021061569,-500.0,0.00025943,2]
[345107662,1734021061578,-500.0,0.00025943,2]
[345107663,1734021061587,-500.0,0.00025943,2]
[345107664,1734021061597,-500.0,0.00025943,2]
[345107665,1734021061607,-500.0,0.00025943,2]
[345107666,1734021061616,-741.15,0.00025943,2]
[345107667,1734021061625,-500.0,0.00025943,2]
[345107668,1734021061635,-500.0,0.00025943,2]
[345107669,1734021061645,-826.77,0.00025943,2]
[345107670,1734021061655,-500.0,0.00025943,2]
[345107671,1734021061664,-702.94,0.00025943,2]
[345107672,1734021061674,-500.0,0.00025943,2]
[345107673,1734021061683,-1000.0,0.00025955,30]
[345107674,1734021061692,-150.0,0.0002597,120]
[345107675,1734021061702,-163.0,0.0002597,120]
[345107676,1734021061711,-372.0,0.0002597,120]
[345107677,1734021061721,-173.53,0.0002597,120]
[345107678,1734021061731,-7871.43092967,0.0002598,2]
[345107679,1734021061741,-163.0,0.0002598,120]
[345107680,1734021061750,-150.5,0.0002598,120]
[345107681,1734021061760,-372.0,0.0002598,120]
[345107682,1734021061769,-637.6623399,0.00025982,2]
[345107683,1734021061779,-491.2632672,0.00025982,2]
[345107684,1734021061788,-344.8641944,0.00025982,2]
[345107686,1734021061797,-1305.7701467,0.00025982,2]
[345107687,1734021061806,-1007.7023502,0.00025982,2]
[345107688,1734021061816,-709.6345537,0.00025982,2]
[345107689,1734021061825,-411.5667572,0.00025982,2]
[345107690,1734021061834,-4901.8394699,0.00025982,2]
[345107691,1734021061843,-3793.0652234,0.00025982,2]
[345107692,1734021061853,-2684.2909769,0.00025982,2]
[345107693,1734021061862,-1575.5167304,0.00025982,2]
[345107694,1734021061872,-572.90888381,0.0002599,2]
[345107695,1734021061882,-500.0,0.00025994,2]
[345107696,1734021061892,-500.0,0.00025994,2]
[345107697,1734021061902,-500.0,0.00025994,2]
[345107698,1734021061912,-500.0,0.00025994,2]
[345107699,1734021061922,-509.6,0.00025994,2]
[345107700,1734021061931,-1832.99,0.00025994,2]
[345107701,1734021061941,-500.0,0.00025994,2]
[345107702,1734021061950,-500.0,0.00025994,2]
[345107703,1734021061960,-500.0,0.00025994,2]
[345107704,1734021061969,-500.0,0.00025994,2]
[345107705,1734021061979,-1243.07,0.00025994,2]
[345107706,1734021061988,-6531.9,0.00025994,120]
[345107707,1734021061997,-2766.6,0.00025994,2]
[345107708,1734021062007,-1213.55,0.00025994,2]
[345107709,1734021062017,-1235.3,0.00025994,2]
[345107710,1734021062027,-459.03942803,0.00025994,2]
[345107711,1734021062038,-1000.0,0.00025998,30]
[345107712,1734021062047,-300.0,0.00025999,10]
[345107713,1734021062057,-300.0,0.00025999,10]
[345107714,1734021062066,-300.0,0.00025999,10]
[345107715,1734021062075,-300.0,0.00025999,10]
[345107716,1734021062084,-300.0,0.00025999,10]
[345107717,1734021062093,-300.0,0.00025999,10]
[345107718,1734021062104,-300.0,0.00025999,10]
[345107719,1734021062114,-300.0,0.00025999,10]
[345107720,1734021062123,-4000.0,0.00025999,60]
[345107721,1734021062133,-1021.05799796,0.00025999,10]
[345107722,1734021062142,-1021.05799796,0.00025999,10]
[345107723,1734021062151,-1235.46513367,0.00025999,10]
[345107724,1734021062160,-500.0,0.00025999,2]
[345107725,1734021062170,-7528.8026151,0.00026,60]
[345107726,1734021062179,-4316.66937118,0.00026,2]
[345107727,1734021062188,-4433.65,0.00026,2]
[345107728,1734021062198,-1500.0,0.00026,6]
[345107729,1734021062207,-2000.0,0.00026,2]
[345107730,1734021062216,-1000.0,0.00026,120]
[345107731,1734021062225,-261.21,0.00026,120]
[345107732,1734021062236,-15331.0,0.00026,3]
[345107733,1734021062246,-3600.0,0.00026,27]
[345107734,1734021062255,-303478.5750886,0.00026,2]
[345107735,1734021062265,-1085931.51379532,0.00026,2]
[345107736,1734021062275,-7400.0,0.00026,2]
[345107737,1734021062285,-2000.0,0.00026,2]
[345107738,1734021062294,-2000.0,0.00026,14]
[345107739,1734021062303,-2000.0,0.00026,15]
[345107740,1734021062312,-200.0,0.00026,2]
[345107741,1734021062322,-307.4626,0.00026,7]
[345107742,1734021062332,-307.4626,0.00026,7]
[345107743,1734021062342,-196.320238,0.00026,7]
[345107744,1734021062356,-196.320238,0.00026,7]
[345107745,1734021062365,-332.284857,0.00026,7]
[345107746,1734021062374,-332.284857,0.00026,7]
[345107747,1734021062383,-538.772821,0.00026,7]
[345107748,1734021062394,-538.772821,0.00026,7]
[345107749,1734021062403,-211.183017,0.00026,7]
[345107750,1734021062412,-213.601405,0.00026,7]
[345107751,1734021062422,-213.601405,0.00026,7]
[345107752,1734021062433,-211.183017,0.00026,7]
[345107753,1734021062443,-151.0,0.00026,7]
[345107754,1734021062452,-327.74594759,0.00026019,2]
[345107755,1734021062461,-500.0,0.00026019,2]
[345107756,1734021062470,-500.0,0.00026019,2]
[345107757,1734021062479,-500.0,0.00026019,2]
[345107758,1734021062489,-500.0,0.00026019,2]
[345107759,1734021062499,-556.9,0.00026019,2]
[345107760,1734021062509,-974.95,0.00026019,2]
[345107761,1734021062519,-618.23,0.00026019,2]
[345107762,1734021062528,-500.0,0.00026019,2]
[345107763,1734021062537,-500.0,0.00026019,2]
[345107764,1734021062547,-1720.1,0.00026019,2]
[345107765,1734021062556,-500.0,0.00026019,2]
[345107766,1734021062565,-500.0,0.00026019,2]
[345107767,1734021062574,-500.0,0.00026019,2]
[345107768,1734021062583,-500.0,0.00026019,2]
[345107769,1734021062593,-750.8,0.00026019,2]
[345107770,1734021062603,-650.98,0.00026019,2]
[345107771,1734021062612,-500.0,0.00026019,2]
[345107772,1734021062621,-631.19,0.00026019,2]
[345107773,1734021062631,-500.0,0.00026019,2]
[345107774,1734021062640,-649.78,0.00026019,2]
[345107775,1734021062650,-500.0,0.00026019,2]
[345107776,1734021062659,-2492.42,0.00026019,2]
[345107777,1734021062668,-500.0,0.00026019,2]
[345107778,1734021062677,-500.0,0.00026019,2]
[345107779,1734021062686,-500.0,0.00026019,2]
[345107780,1734021062707,-500.0,0.00026019,2]
[345107781,1734021062716,-500.0,0.00026019,2]
[345107782,1734021062726,-500.0,0.00026019,2]
[345107783,1734021062735,-2062.1,0.00026019,2]
[345107784,1734021062745,-1973.88,0.00026019,2]
[345107785,1734021062756,-624.7,0.00026019,2]
[345107786,1734021062765,-500.0,0.00026019,2]
[345107787,1734021062775,-500.0,0.00026019,2]
[345107788,1734021062784,-500.0,0.00026019,2]
[345107789,1734021062794,-500.0,0.00026019,2]
[345107790,1734021062804,-500.0,0.00026019,2]
[345107791,1734021062813,-500.0,0.00026019,2]
[345107792,1734021062823,-553.86,0.00026019,2]
[345107793,1734021062832,-500.0,0.00026019,2]
[345107794,1734021062841,-1290.74,0.00026019,2]
[345107795,1734021062851,-500.0,0.00026019,2]
[345107796,1734021062860,-500.0,0.00026019,2]
[345107797,1734021062870,-1281.86,0.00026019,2]
[345107798,1734021062879,-500.0,0.00026019,2]
[345107799,1734021062888,-360.30607495,0.00026019,2]
[345107800,1734021062897,-500.0,0.00026019,2]
[345107801,1734021062906,-500.0,0.00026024,2]
[345107802,1734021062915,-500.0,0.00026024,2]
[345107803,1734021062925,-750.0,0.00026024,2]
[345107804,1734021062934,-500.0,0.00026024,2]
[345107805,1734021062943,-646.36,0.00026024,2]
[345107806,1734021062953,-625.17,0.00026024,2]
[345107807,1734021062962,-1306.31,0.00026024,2]
[345107808,1734021062971,-500.0,0.00026024,2]
[345107809,1734021062980,-1247.24,0.00026024,2]
[345107810,1734021062989,-297.68,0.00026024,2]
[345107811,1734021062999,-649.16,0.00026024,2]
[345107812,1734021063136,-796.67,0.00026024,2]
[345107813,1734021063146,-428.3,0.00026024,2]
[345107814,1734021063156,-500.0,0.00026024,2]
[345107815,1734021063166,-1236.73,0.00026024,2]
[345107816,1734021063176,-1078.44,0.00026024,2]
[345107817,1734021063186,-500.0,0.00026024,2]
[345107818,1734021063215,-500.0,0.00026024,2]
[345107819,1734021063226,-500.0,0.00026024,2]
[345107820,1734021063236,-600.0,0.00026024,2]
[345107821,1734021063246,-519.56272452,0.0002604,2]
[345107822,1734021063256,-1000.0,0.00026042,30]
[345107823,1734021063266,-1963.05202227,0.00026053,7]
[345107824,1734021063276,-25000.0,0.0002607,2]
[345107825,1734021063287,-150.0,0.00026083,120]
[345107826,1734021063297,-1000.0,0.00026086,30]
[345107827,1734021063308,-1000.0,0.00026129,30]
[345107828,1734021063317,-1000.0,0.00026173,30]
[345107829,1734021063328,-534.0,0.00026181,2]
[345107830,1734021063337,-2000.0,0.00026183,120]
[345107831,1734021063346,-500.0,0.00026183,120]
[345107832,1734021063356,-200.0,0.00026183,120]
[345107833,1734021063369,-1000.0,0.00026217,30]
[345107834,1734021063379,-500.72184488,0.00026217,2]
[345107835,1734021063389,-500.0,0.00026217,2]
[345107836,1734021063398,-500.0,0.00026217,2]
[345107837,1734021063410,-584.52109685,0.00026217,2]
[345107838,1734021063419,-500.0,0.00026217,2]
[345107839,1734021063429,-561.12989842,0.00026217,2]
[345107840,1734021063440,-500.0,0.00026217,2]
[345107841,1734021063449,-500.0,0.00026217,2]
[345107842,1734021063459,-741.15,0.00026217,2]
[345107843,1734021063468,-500.0,0.00026217,2]
[345107844,1734021063478,-500.0,0.00026217,2]
[345107845,1734021063488,-826.77,0.00026217,2]
[345107846,1734021063498,-500.0,0.00026217,2]
[345107847,1734021063508,-702.94,0.00026217,2]
[345107848,1734021063518,-500.0,0.00026217,2]
[345107849,1734021063528,-1000.0,0.00026261,30]
[345107850,1734021063538,-500.0,0.00026268,2]
[345107851,1734021063548,-500.0,0.00026268,2]
[345107852,1734021063559,-500.0,0.00026268,2]
[345107853,1734021063569,-500.0,0.00026268,2]
[345107854,1734021063578,-509.6,0.00026268,2]
[345107855,1734021063587,-1832.99,0.00026268,2]
[345107856,1734021063597,-500.0,0.00026268,2]
[345107857,1734021063607,-500.0,0.00026268,2]
[345107858,1734021063616,-435.45265464,0.00026268,2]
[345107859,1734021063626,-1243.07,0.00026268,2]
[345107860,1734021063637,-6531.9,0.00026268,120]
[345107861,1734021063647,-2766.6,0.00026268,2]
[345107862,1734021063656,-1213.55,0.00026268,2]
[345107863,1734021063666,-1235.3,0.00026268,2]
[345107864,1734021063675,-500.0,0.00026293,2]
[345107865,1734021063685,-500.0,0.00026293,2]
[345107866,1734021063695,-500.0,0.00026293,2]
[345107867,1734021063704,-500.0,0.00026293,2]
[345107868,1734021063714,-556.9,0.00026293,2]
[345107869,1734021063741,-974.95,0.00026293,2]
[345107870,1734021063751,-618.23,0.00026293,2]
[345107871,1734021063762,-500.0,0.00026293,2]
[345107872,1734021063772,-500.0,0.00026293,2]
[345107873,1734021063783,-1720.1,0.00026293,2]
[345107874,1734021063793,-500.0,0.00026293,2]
[345107875,1734021063803,-500.0,0.00026293,2]
[345107876,1734021063814,-500.0,0.00026293,2]
[345107877,1734021063824,-500.0,0.00026293,2]
[345107878,1734021063834,-750.8,0.00026293,2]
[345107879,1734021063844,-650.98,0.00026293,2]
[345107880,1734021063854,-500.0,0.00026293,2]
[345107881,1734021063863,-631.19,0.00026293,2]
[345107882,1734021063873,-500.0,0.00026293,2]
[345107883,1734021063883,-649.78,0.00026293,2]
[345107884,1734021063892,-500.0,0.00026293,2]
[345107885,1734021063903,-2492.42,0.00026293,2]
[345107886,1734021063913,-500.0,0.00026293,2]
[345107887,1734021063923,-500.0,0.00026293,2]
[345107888,1734021063934,-500.0,0.00026293,2]
[345107889,1734021063944,-500.0,0.00026293,2]
[345107890,1734021063955,-500.0,0.00026293,2]
[345107891,1734021063966,-500.0,0.00026293,2]
[345107892,1734021063976,-2062.1,0.00026293,2]
[345107893,1734021063986,-1973.88,0.00026293,2]
[345107894,1734021063995,-624.7,0.00026293,2]
[345107895,1734021064006,-500.0,0.00026293,2]
[345107896,1734021064015,-500.0,0.00026293,2]
[345107897,1734021064028,-500.0,0.00026293,2]
[345107898,1734021064038,-500.0,0.00026293,2]
[345107899,1734021064048,-500.0,0.00026293,2]
[345107900,1734021064058,-500.0,0.00026293,2]
[345107901,1734021064069,-553.86,0.00026293,2]
[345107902,1734021064079,-500.0,0.00026293,2]
[345107903,1734021064089,-1290.74,0.00026293,2]
[345107904,1734021064099,-500.0,0.00026293,2]
[345107905,1734021064110,-500.0,0.00026293,2]
[345107906,1734021064120,-1281.86,0.00026293,2]
[345107907,1734021064131,-500.0,0.00026293,2]
[345107908,1734021064140,-500.0,0.00026293,2]
[345107909,1734021064151,-500.0,0.00026298,2]
[345107910,1734021064161,-444.33970608,0.00026298,2]
[345107911,1734021064171,-750.0,0.00026298,2]
[345107912,1734021064182,-500.0,0.00026298,2]
[345107913,1734021064191,-646.36,0.00026298,2]
[345107914,1734021064201,-625.17,0.00026298,2]
[345107915,1734021064211,-1306.31,0.00026298,2]
[345107916,1734021064220,-500.0,0.00026298,2]
[345107917,1734021064230,-1247.24,0.00026298,2]
[345107918,1734021064239,-649.16,0.00026298,2]
[345107919,1734021064267,-796.67,0.00026298,2]
[345107920,1734021064277,-500.0,0.00026298,2]
[345107921,1734021064287,-1236.73,0.00026298,2]
[345107922,1734021064298,-1078.44,0.00026298,2]
[345107923,1734021064308,-500.0,0.00026298,2]
[345107924,1734021064318,-610.0,0.00026298,2]
[345107925,1734021064328,-310.20422525,0.00026298,2]
[345107926,1734021064339,-600.0,0.00026298,2]
[345107927,1734021064354,-7426.92,0.000263,7]
[345107928,1734021064368,-1000.0,0.00026304,30]
[345107929,1734021064378,-1963.05202227,0.00026319,7]
[345107930,1734021064388,-1000.0,0.00026348,30]
[345107931,1734021064398,-2888.0,0.00026369,4]
[345107932,1734021064408,-1000.0,0.00026392,30]
[345107933,1734021064418,-26210.07481895,0.000264,2]
[345107934,1734021064429,-164.11,0.0002641,120]
[345107935,1734021064439,-372.44,0.0002641,120]
[345107936,1734021064450,-163.0,0.0002642,120]
[345107937,1734021064459,-372.0,0.0002642,120]
[345107938,1734021064469,-681.7129765,0.00026421,2]
[345107939,1734021064479,-1000.0,0.00026435,30]
[345107940,1734021064488,-534.0,0.00026455,2]
[345107941,1734021064497,-1000.0,0.00026479,30]
[345107942,1734021064507,-420.45149318,0.00026491,2]
[345107943,1734021064518,-500.0,0.00026491,2]
[345107944,1734021064528,-500.0,0.00026491,2]
[345107945,1734021064539,-500.0,0.00026491,2]
[345107946,1734021064550,-741.15,0.00026491,2]
[345107947,1734021064559,-500.0,0.00026491,2]
[345107948,1734021064569,-500.0,0.00026491,2]
[345107949,1734021064579,-826.77,0.00026491,2]
[345107950,1734021064590,-500.0,0.00026491,2]
[345107951,1734021064600,-702.94,0.00026491,2]
[345107952,1734021064611,-500.0,0.00026491,2]
[345107953,1734021064621,-1000.0,0.00026523,30]
[345107954,1734021064631,-150.903432,0.0002653,3]
[345107955,1734021064642,-150.77065,0.0002653,3]
[345107956,1734021064651,-192.46296989,0.00026535,2]
[345107957,1734021064662,-500.0,0.00026542,2]
[345107958,1734021064672,-500.0,0.00026542,2]
[345107959,1734021064682,-500.0,0.00026542,2]
[345107960,1734021064692,-509.6,0.00026542,2]
[345107961,1734021064702,-1832.99,0.00026542,2]
[345107962,1734021064712,-500.0,0.00026542,2]
[345107963,1734021064722,-500.0,0.00026542,2]
[345107964,1734021064732,-1243.07,0.00026542,2]
[345107965,1734021064742,-6531.9,0.00026542,120]
[345107966,1734021064752,-2766.6,0.00026542,2]
[345107967,1734021064762,-1213.55,0.00026542,2]
[345107968,1734021064791,-1235.3,0.00026542,2]
[345107969,1734021064800,-192.46296989,0.00026555,2]
[345107970,1734021064810,-1000.0,0.00026567,30]
[345107971,1734021064820,-500.0,0.00026567,2]
[345107972,1734021064830,-500.0,0.00026567,2]
[345107973,1734021064839,-500.0,0.00026567,2]
[345107974,1734021064849,-500.0,0.00026567,2]
[345107975,1734021064859,-556.9,0.00026567,2]
[345107976,1734021064870,-974.95,0.00026567,2]
[345107977,1734021064880,-618.23,0.00026567,2]
[345107978,1734021064890,-500.0,0.00026567,2]
[345107979,1734021064899,-500.0,0.00026567,2]
[345107980,1734021064910,-1720.1,0.00026567,2]
[345107981,1734021064919,-500.0,0.00026567,2]
[345107982,1734021064929,-500.0,0.00026567,2]
[345107983,1734021064939,-535.82675873,0.00026567,2]
[345107984,1734021064949,-500.0,0.00026567,2]
[345107985,1734021064959,-750.8,0.00026567,2]
[345107986,1734021064969,-650.98,0.00026567,2]
[345107987,1734021064978,-500.0,0.00026567,2]
[345107988,1734021064987,-631.19,0.00026567,2]
[345107989,1734021064997,-500.0,0.00026567,2]
[345107990,1734021065008,-649.78,0.00026567,2]
[345107991,1734021065018,-500.0,0.00026567,2]
[345107992,1734021065027,-2492.42,0.00026567,2]
[345107993,1734021065038,-500.0,0.00026567,2]
[345107994,1734021065047,-500.0,0.00026567,2]
[345107995,1734021065057,-500.0,0.00026567,2]
[345107996,1734021065067,-500.0,0.00026567,2]
[345107997,1734021065078,-561.57073196,0.00026567,2]
[345107998,1734021065088,-500.0,0.00026567,2]
[345107999,1734021065098,-2062.1,0.00026567,2]
[345108000,1734021065108,-1973.88,0.00026567,2]
[345108001,1734021065119,-624.7,0.00026567,2]
[345108002,1734021065129,-500.0,0.00026567,2]
[345108003,1734021065139,-500.0,0.00026567,2]
[345108004,1734021065147,-219.8644261,0.00026567,2]
[345108005,1734021065158,-500.0,0.00026567,2]
[345108006,1734021065168,-334.73311056,0.00026567,2]
[345108007,1734021065177,-500.0,0.00026567,2]
[345108008,1734021065187,-553.86,0.00026567,2]
[345108009,1734021065198,-500.0,0.00026567,2]
[345108010,1734021065208,-1290.74,0.00026567,2]
[345108011,1734021065218,-500.0,0.00026567,2]
[345108012,1734021065228,-500.0,0.00026567,2]
[345108013,1734021065237,-1281.86,0.00026567,2]
[345108014,1734021065247,-500.0,0.00026567,2]
[345108015,1734021065257,-500.0,0.00026567,2]
[345108016,1734021065266,-500.0,0.00026572,2]
[345108017,1734021065276,-750.0,0.00026572,2]
[345108018,1734021065306,-500.0,0.00026572,2]
[345108019,1734021065316,-646.36,0.00026572,2]
[345108020,1734021065325,-625.17,0.00026572,2]
[345108021,1734021065335,-1306.31,0.00026572,2]
[345108022,1734021065346,-500.0,0.00026572,2]
[345108023,1734021065359,-1247.24,0.00026572,2]
[345108024,1734021065369,-649.16,0.00026572,2]
[345108025,1734021065379,-796.67,0.00026572,2]
[345108026,1734021065390,-500.0,0.00026572,2]
[345108027,1734021065399,-1236.73,0.00026572,2]
[345108028,1734021065409,-1078.44,0.00026572,2]
[345108029,1734021065419,-500.0,0.00026572,2]
[345108030,1734021065429,-312.91163894,0.00026572,2]
[345108031,1734021065439,-192.46296989,0.00026574,2]
[345108032,1734021065450,-15000.0,0.0002658,30]
[345108033,1734021065460,-1963.05,0.00026585,7]
[345108034,1734021065470,-1289.51099472,0.00026596,2]
[345108035,1734021065480,-1000.0,0.0002661,30]
[345108036,1734021065490,-1676.16342755,0.00026626,2]
[345108037,1734021065499,-300.0,0.00026634,10]
[345108038,1734021065509,-300.0,0.00026634,10]
[345108039,1734021065519,-300.0,0.00026634,10]
[345108040,1734021065528,-300.0,0.00026634,10]
[345108041,1734021065538,-300.0,0.00026634,10]
[345108042,1734021065548,-300.0,0.00026634,10]
[345108043,1734021065558,-300.0,0.00026634,10]
[345108044,1734021065567,-375.08329966,0.00026634,10]
[345108045,1734021065577,-300.0,0.00026634,10]
[345108046,1734021065586,-300.0,0.00026634,10]
[345108047,1734021065595,-300.0,0.00026634,10]
[345108048,1734021065604,-300.0,0.00026634,10]
[345108049,1734021065614,-300.0,0.00026634,10]
[345108050,1734021065623,-300.0,0.00026634,10]
[345108051,1734021065633,-300.0,0.00026634,10]
[345108052,1734021065642,-300.0,0.00026634,10]
[345108053,1734021065652,-300.0,0.00026634,10]
[345108054,1734021065661,-300.0,0.00026635,10]
[345108055,1734021065670,-300.0,0.00026635,10]
[345108056,1734021065680,-300.0,0.00026635,10]
[345108057,1734021065690,-300.0,0.00026635,10]
[345108058,1734021065699,-300.0,0.00026635,10]
[345108059,1734021065710,-300.0,0.00026635,10]
[345108060,1734021065719,-300.0,0.00026635,10]
[345108061,1734021065729,-300.0,0.00026635,10]
[345108062,1734021065739,-2177.0,0.00026635,2]
[345108063,1734021065749,-183.042821,0.00026635,7]
[345108064,1734021065759,-183.042821,0.00026635,7]
[345108065,1734021065769,-183.042821,0.00026635,7]
[345108066,1734021065779,-183.042821,0.00026635,7]
[345108067,1734021065802,-183.042821,0.00026635,7]
[345108068,1734021065811,-33039.02806488,0.00026635,2]
[345108069,1734021065821,-151.0,0.00026636,7]
[345108070,1734021065831,-151.0,0.00026636,7]
[345108071,1734021065840,-151.0,0.00026636,7]
[345108072,1734021065849,-151.0,0.00026636,7]
[345108073,1734021065978,-151.0,0.00026636,7]
[345108074,1734021065987,-151.0,0.00026636,7]
[345108075,1734021065997,-151.0,0.00026636,7]
[345108076,1734021066007,-282.0,0.00026636,7]
[345108077,1734021066017,-164.264112,0.00026636,7]
[345108078,1734021066026,-151.0,0.00026636,7]
[345108079,1734021066035,-151.0,0.00026636,7]
[345108080,1734021066045,-151.0,0.00026636,7]
[345108081,1734021066054,-151.0,0.00026636,7]
[345108082,1734021066064,-151.0,0.00026636,7]
[345108083,1734021066074,-151.0,0.00026636,7]
[345108084,1734021066083,-151.0,0.00026636,7]
[345108085,1734021066093,-151.0,0.00026636,7]
[345108086,1734021066102,-151.0,0.00026636,7]
[345108087,1734021066111,-151.0,0.00026636,7]
[345108088,1734021066121,-196.847453,0.00026636,7]
[345108089,1734021066131,-151.0,0.00026636,7]
[345108090,1734021066140,-151.0,0.00026636,7]
[345108091,1734021066150,-151.0,0.00026636,7]
[345108092,1734021066159,-151.0,0.00026636,7]
[345108093,1734021066168,-249.614868,0.00026636,7]
[345108094,1734021066178,-1000.0,0.00026654,30]
[345108095,1734021066187,-198.4651217,0.00026655,2]
[345108096,1734021066196,-997.12,0.0002667,2]
[345108097,1734021066205,-300.0,0.00026672,10]
[345108098,1734021066215,-300.0,0.00026672,10]
[345108099,1734021066225,-300.0,0.00026672,10]
[345108100,1734021066234,-300.0,0.00026672,10]
[345108101,1734021066244,-300.0,0.00026672,10]
[345108102,1734021066254,-300.0,0.00026672,10]
[345108103,1734021066264,-300.0,0.00026672,10]
[345108104,1734021066274,-300.0,0.00026673,10]
[345108105,1734021066284,-300.0,0.00026673,10]
[345108106,1734021066302,-300.0,0.00026673,10]
[345108107,1734021066317,-300.0,0.00026673,10]
[345108108,1734021066327,-300.0,0.00026673,10]
[345108109,1734021066336,-300.0,0.00026673,10]
[345108110,1734021066346,-300.0,0.00026673,10]
[345108111,1734021066356,-151.0,0.00026674,7]
[345108112,1734021066369,-151.0,0.00026674,7]
[345108113,1734021066379,-151.0,0.00026674,7]
[345108114,1734021066389,-289.865784,0.00026674,7]
[345108115,1734021066398,-309.077637,0.00026674,7]
[345108116,1734021066410,-309.077637,0.00026674,7]
[345108117,1734021066420,-309.077637,0.00026674,7]
[345108118,1734021066430,-309.077637,0.00026674,7]
[345108119,1734021066440,-309.077637,0.00026674,7]
[345108120,1734021066450,-309.077637,0.00026674,7]